fUSD/lending_fUSD_20240616
["ID","MTS","AMOUNT","RATE_DAILY","PERIOD"]
[329645065,1718538697573,-500.0,0.00022739,3]
[329645066,1718538697596,-500.0,0.00022739,3]
[329645067,1718538697610,-849.46,0.00022739,3]
[329645068,1718538697622,-588.93,0.00022739,3]
[329645069,1718538697634,-686.57,0.00022739,3]
[329645070,1718538697659,-500.0,0.00022739,3]
[329645071,1718538697671,-500.0,0.00022739,3]
[329645072,1718538697686,-500.0,0.00022739,3]
[329645073,1718538697697,-568.35,0.00022739,3]
[329645074,1718538697710,-503.85,0.00022739,3]
[329645075,1718538697723,-500.0,0.00022739,3]
[329645076,1718538697741,-902.54,0.00022739,3]
[329645077,1718538697754,-500.0,0.00022739,3]
[329645078,1718538697773,-500.0,0.00022739,3]
[329645079,1718538697795,-500.0,0.00022739,3]
[329645080,1718538697827,-500.0,0.00022739,3]
[329645081,1718538697845,-500.0,0.00022739,3]
[329645082,1718538697872,-500.0,0.00022739,3]
[329645083,1718538697890,-500.0,0.00022739,3]
[329645084,1718538697903,-500.0,0.00022739,3]
[329645085,1718538697921,-500.0,0.00022739,3]
[329645086,1718538697935,-500.0,0.00022739,3]
[329645087,1718538697955,-500.0,0.00022739,3]
[329645088,1718538697987,-833.07,0.00022739,3]
[329645089,1718538698021,-500.0,0.00022739,3]
[329645090,1718538698040,-500.0,0.00022739,3]
[329645091,1718538698062,-500.0,0.00022739,3]
[329645092,1718538698072,-511.59,0.00022739,3]
[329645093,1718538698084,-1114.37,0.00022739,3]
[329645094,1718538698099,-500.0,0.00022739,3]
[329645095,1718538698130,-500.0,0.00022739,3]
[329645096,1718538698155,-867.65,0.00022739,3]
[329645097,1718538698167,-500.0,0.00022739,3]
[329645098,1718538698186,-564.01,0.00022739,3]
[329645099,1718538698230,-500.0,0.00022739,3]
[329645100,1718538698250,-507.91,0.00022739,3]
[329645101,1718538698270,-500.0,0.00022739,3]
[329645102,1718538698286,-500.0,0.00022739,3]
[329645103,1718538698297,-500.0,0.00022739,3]
[329645104,1718538698310,-531.33,0.00022739,3]
[329645105,1718538698329,-500.0,0.00022739,3]
[329645106,1718538698342,-267.4784878,0.00022739,3]
[329645107,1718538698369,-500.0,0.00022739,3]
[329645108,1718538698404,-500.0,0.00022739,3]
[329645109,1718538698415,-500.0,0.00022739,3]
[329645110,1718538698427,-500.0,0.00022739,3]
[329645111,1718538698447,-618.4,0.00022739,3]
[329645112,1718538698464,-500.0,0.00022739,3]
[329645113,1718538698494,-561.59,0.00022739,3]
[329645114,1718538698526,-551.81,0.00022739,3]
[329645115,1718538698555,-500.0,0.00022739,3]
[329645116,1718538698575,-259.15016773,0.00022739,3]
[329645117,1718538698596,-500.0,0.00022739,3]
[329645118,1718538698614,-527.68,0.00022739,3]
[329645119,1718538698657,-500.0,0.00022739,3]
[329645120,1718538698681,-540.61,0.00022739,3]
[329645121,1718538698697,-827.67,0.00022739,3]
[329645122,1718538698710,-500.0,0.00022739,3]
[329645123,1718538698723,-500.0,0.00022739,3]
[329645124,1718538698751,-500.0,0.00022739,3]
[329645125,1718538698785,-500.0,0.00022739,3]
[329645126,1718538698797,-500.0,0.00022739,3]
[329645127,1718538698808,-500.0,0.00022739,3]
[329645128,1718538698820,-500.0,0.00022739,3]
[329645129,1718538698835,-203.22,0.00022739,3]
[329645130,1718538698847,-500.0,0.00022739,3]
[329645131,1718538698858,-1352.2,0.00022739,3]
[329645132,1718538698869,-500.0,0.00022739,3]
[329645133,1718538698881,-540.4,0.00022739,3]
[329645134,1718538698901,-500.0,0.00022739,3]
[329645135,1718538698913,-214.00796641,0.00022739,3]
[329645136,1718538698935,-500.0,0.00022739,3]
[329645137,1718538698953,-500.0,0.00022739,3]
[329645138,1718538698977,-500.0,0.00022739,3]
[329645139,1718538698997,-500.0,0.00022739,3]
[329645140,1718538699018,-500.0,0.00022739,3]
[329645141,1718538699029,-500.0,0.00022739,3]
[329645142,1718538699049,-500.0,0.00022739,3]
[329645143,1718538699074,-503.17,0.00022739,3]
[329645144,1718538699086,-500.0,0.00022739,3]
[329645145,1718538699113,-962.95,0.00022739,3]
[329645146,1718538699125,-500.0,0.00022739,3]
[329645147,1718538699138,-500.0,0.00022739,3]
[329645148,1718538699163,-500.0,0.00022739,3]
[329645149,1718538699183,-500.0,0.00022739,3]
[329645150,1718538699212,-500.0,0.00022739,3]
[329645151,1718538699228,-500.0,0.00022739,3]
[329645152,1718538699275,-500.0,0.00022739,3]
[329645153,1718538699309,-659.13,0.00022739,3]
[329645154,1718538699340,-500.0,0.00022739,3]
[329645155,1718538699355,-500.0,0.00022739,3]
[329645156,1718538699368,-500.0,0.00022739,3]
[329645157,1718538699386,-500.0,0.00022739,3]
[329645158,1718538699401,-798.56,0.00022739,3]
[329645159,1718538699439,-500.0,0.00022739,3]
[329645160,1718538699459,-500.0,0.00022739,3]
[329645161,1718538699484,-322.08068405,0.00022739,3]
[329645162,1718538699497,-500.0,0.00022739,3]
[329645163,1718538699539,-500.0,0.00022739,3]
[329645164,1718538699562,-500.0,0.00022739,3]
[329645165,1718538699591,-1149.79,0.00022739,3]
[329645166,1718538699612,-500.0,0.00022739,3]
[329645167,1718538699640,-500.0,0.00022739,3]
[329645168,1718538699652,-1048.66,0.00022739,3]
[329645169,1718538699669,-500.0,0.00022739,3]
[329645170,1718538699698,-500.0,0.00022739,3]
[329645171,1718538699710,-500.0,0.00022739,3]
[329645172,1718538699731,-500.0,0.00022739,3]
[329645173,1718538699752,-500.0,0.00022739,3]
[329645174,1718538699765,-500.0,0.00022739,3]
[329645175,1718538699776,-500.0,0.00022739,3]
[329645176,1718538699788,-500.0,0.00022739,3]
[329645177,1718538699800,-500.0,0.00022739,3]
[329645178,1718538699816,-500.0,0.00022739,3]
[329645179,1718538699835,-827.65,0.00022739,3]
[329645180,1718538699848,-500.0,0.00022739,3]
[329645181,1718538699863,-500.0,0.00022739,3]
[329645182,1718538699888,-505.7357291,0.00022739,3]
[329645183,1718538699911,-500.0,0.00022739,3]
[329645184,1718538699923,-500.0,0.00022739,3]
[329645185,1718538699936,-3617.46,0.00022739,3]
[329645186,1718538699956,-500.0,0.00022739,3]
[329645187,1718538699976,-500.0,0.00022739,3]
[329645188,1718538699990,-500.0,0.00022739,3]
[329645189,1718538700022,-500.0,0.00022739,3]
[329645190,1718538700048,-583.4,0.00022739,3]
[329645191,1718538700067,-910.63,0.00022739,3]
[329645192,1718538700080,-500.0,0.00022739,3]
[329645193,1718538700106,-500.0,0.00022739,3]
[329645194,1718538700125,-500.0,0.00022739,3]
[329645195,1718538700165,-500.0,0.00022739,3]
[329645196,1718538700200,-7927.95,0.00022739,3]
[329645197,1718538700214,-500.0,0.00022739,3]
[329645198,1718538700233,-500.0,0.00022739,3]
[329645199,1718538700245,-500.0,0.00022739,3]
[329645200,1718538700256,-500.0,0.00022739,3]
[329645201,1718538700266,-524.41,0.00022739,3]
[329645202,1718538700290,-4256.0,0.00022739,3]
[329645203,1718538700301,-500.0,0.00022739,3]
[329645204,1718538700313,-500.0,0.00022739,3]
[329645205,1718538700334,-500.0,0.00022739,3]
[329645206,1718538700361,-500.0,0.00022739,3]
[329645207,1718538700390,-500.0,0.00022739,3]
[329645208,1718538700408,-500.0,0.00022739,3]
[329645209,1718538700425,-1338.61,0.00022739,3]
[329645210,1718538700437,-500.0,0.00022739,3]
[329645211,1718538700451,-500.0,0.00022739,3]
[329645212,1718538700490,-500.0,0.00022739,3]
[329645213,1718538700525,-1102.86,0.00022739,3]
[329645214,1718538700539,-500.0,0.00022739,3]
[329645215,1718538700555,-500.0,0.00022739,3]
[329645216,1718538700576,-500.0,0.00022739,3]
[329645217,1718538700589,-366.96,0.00022739,3]
[329645218,1718538700612,-500.0,0.00022739,3]
[329645219,1718538700624,-500.0,0.00022739,3]
[329645220,1718538700643,-1168.34,0.00022739,3]
[329645221,1718538700664,-500.0,0.00022739,3]
[329645222,1718538700678,-2020.94,0.00022739,3]
[329645223,1718538700693,-509.22143597,0.00022739,3]
[329645224,1718538700707,-1805.75,0.00022739,3]
[329645225,1718538700723,-500.0,0.00022739,3]
[329645226,1718538700755,-500.0,0.00022739,3]
[329645227,1718538700781,-16716.72,0.00022739,3]
[329645228,1718538700802,-486.23341157,0.00022739,3]
[329645229,1718538700835,-1241.14,0.00022739,3]
[329645230,1718538700854,-159.86962078,0.00022739,3]
[329645231,1718538700868,-500.0,0.00022739,3]
[329645232,1718538700883,-500.0,0.00022739,3]
[329645233,1718538700899,-2124.83,0.00022739,3]
[329645234,1718538700928,-500.0,0.00022739,3]
[329645235,1718538700949,-500.0,0.00022739,3]
[329645236,1718538700968,-8693.33,0.00022739,3]
[329645237,1718538700980,-1183.03,0.00022739,3]
[329645238,1718538700998,-4851.41,0.00022739,3]
[329645239,1718538701012,-500.0,0.00022739,3]
[329645240,1718538701026,-2372.0,0.00022739,3]
[329645241,1718538701041,-500.0,0.00022739,3]
[329645242,1718538701060,-773.0,0.00022739,3]
[329645243,1718538701085,-500.0,0.00022739,3]
[329645244,1718538701105,-500.0,0.00022739,3]
[329645245,1718538701119,-500.0,0.00022739,3]
[329645246,1718538701163,-1272.31,0.00022739,3]
[329645247,1718538701192,-1816.2,0.00022739,3]
[329645248,1718538701208,-500.0,0.00022739,3]
[329645249,1718538701258,-500.0,0.00022739,3]
[329645250,1718538701279,-500.0,0.00022739,3]
[329645251,1718538701305,-500.0,0.00022739,3]
[329645252,1718538701332,-500.0,0.00022739,3]
[329645253,1718538701349,-500.0,0.00022739,3]
[329645254,1718538701376,-2506.46,0.00022739,3]
[329645255,1718538701408,-857.28,0.00022739,3]
[329645256,1718538701440,-500.0,0.00022739,3]
[329645257,1718538701475,-500.0,0.00022739,3]
[329645258,1718538701490,-564.29679912,0.00022739,3]
[329645259,1718538701509,-500.0,0.00022739,3]
[329645260,1718538701541,-510.22,0.00022739,3]
[329645261,1718538701576,-542.84,0.00022739,3]
[329645262,1718538701605,-500.0,0.00022739,3]
[329645263,1718538701631,-550.33,0.00022739,3]
[329645264,1718538701652,-500.0,0.00022739,3]
[329645265,1718538701677,-1956.96,0.00022739,3]
[329645266,1718538701697,-3926.03,0.00022739,3]
[329645267,1718538701717,-740.8,0.00022739,3]
[329645268,1718538701738,-500.0,0.00022739,3]
[329645269,1718538701752,-962.96,0.00022739,3]
[329645270,1718538701764,-500.0,0.00022739,3]
[329645271,1718538701779,-5131.49,0.00022739,3]
[329645272,1718538701799,-500.0,0.00022739,3]
[329645273,1718538701826,-500.0,0.00022739,3]
[329645274,1718538701844,-500.0,0.00022739,3]
[329645275,1718538701873,-500.0,0.00022739,3]
[329645276,1718538701889,-500.0,0.00022739,3]
[329645277,1718538701906,-1515.06,0.00022739,3]
[329645278,1718538701949,-933.52,0.00022739,3]
[329645279,1718538701972,-605.14,0.00022739,3]
[329645280,1718538702023,-683.72,0.00022739,3]
[329645281,1718538702057,-500.0,0.00022739,3]
[329645282,1718538702070,-1580.64,0.00022739,3]
[329645283,1718538702082,-500.0,0.00022739,3]
[329645284,1718538702097,-1085.84,0.00022739,3]
[329645285,1718538702121,-1501.56,0.00022739,3]
[329645286,1718538702134,-500.0,0.00022739,3]
[329645287,1718538702168,-7059.05,0.00022739,3]
[329645288,1718538702190,-1038.4,0.00022739,3]
[329645289,1718538702206,-500.0,0.00022739,3]
[329645290,1718538702232,-500.0,0.00022739,3]
[329645291,1718538702251,-500.0,0.00022739,3]
[329645292,1718538702263,-500.0,0.00022739,3]
[329645293,1718538702294,-6081.58,0.00022739,3]
[329645294,1718538702322,-500.0,0.00022739,3]
[329645295,1718538702333,-500.0,0.00022739,3]
[329645296,1718538702343,-500.0,0.00022739,3]
[329645297,1718538702362,-3600.18,0.00022739,3]
[329645298,1718538702416,-500.0,0.00022739,3]
[329645299,1718538702430,-3713.02,0.00022739,3]
[329645300,1718538702448,-1899.16,0.00022739,3]
[329645301,1718538702461,-3745.09,0.00022739,3]
[329645302,1718538702473,-500.0,0.00022739,3]
[329645303,1718538702484,-739.36,0.00022739,3]
[329645304,1718538702497,-2331.02,0.00022739,3]
[329645305,1718538702511,-954.22,0.00022739,3]
[329645306,1718538702528,-2038.78,0.00022739,3]
[329645307,1718538702540,-3357.07,0.00022739,3]
[329645308,1718538702552,-645.61,0.00022739,3]
[329645309,1718538702562,-500.0,0.00022739,3]
[329645310,1718538702575,-3148.47,0.00022739,3]
[329645311,1718538702587,-996.94,0.00022739,3]
[329645312,1718538702598,-500.0,0.00022739,3]
[329645313,1718538702617,-200.0,0.00022739,3]
[329645314,1718538702627,-500.0,0.00022739,3]
[329645315,1718538702638,-728.59,0.00022739,3]
[329645316,1718538702649,-654.77,0.00022739,3]
[329645317,1718538702662,-500.0,0.00022739,3]
[329645318,1718538702673,-500.0,0.00022739,3]
[329645319,1718538702684,-1948.76,0.00022739,3]
[329645320,1718538702696,-962.07,0.00022739,3]
[329645321,1718538702707,-2105.14,0.00022739,3]
[329645322,1718538702719,-1292.48,0.00022739,3]
[329645323,1718538702736,-507.09726464,0.00022739,3]
[329645324,1718538702746,-500.0,0.00022739,3]
[329645325,1718538702764,-500.0,0.00022739,3]
[329645326,1718538702775,-500.0,0.00022739,3]
[329645327,1718538702787,-500.0,0.00022739,3]
[329645328,1718538702803,-625.93,0.00022739,3]
[329645329,1718538702818,-500.0,0.00022739,3]
[329645330,1718538702833,-500.0,0.00022739,3]
[329645331,1718538702848,-1856.52,0.00022739,3]
[329645332,1718538702859,-1002.46,0.00022739,3]
[329645333,1718538702872,-1386.03,0.00022739,3]
[329645334,1718538702912,-485.92313327,0.00022739,3]
[329645335,1718538702925,-500.0,0.00022739,3]
[329645336,1718538702937,-779.24,0.00022739,3]
[329645337,1718538702955,-500.0,0.00022739,3]
[329645338,1718538702969,-500.0,0.00022739,3]
[329645339,1718538702982,-500.0,0.00022739,3]
[329645340,1718538703011,-1126.05,0.00022739,3]
[329645341,1718538703041,-2255.51,0.00022739,3]
[329645342,1718538703074,-500.0,0.00022739,3]
[329645343,1718538703087,-500.0,0.00022739,3]
[329645344,1718538703099,-500.0,0.00022739,3]
[329645345,1718538703131,-500.0,0.00022739,3]
[329645346,1718538703145,-871.1,0.00022739,3]
[329645347,1718538703160,-3285.08,0.00022739,3]
[329645348,1718538703172,-4311.37,0.00022739,3]
[329645349,1718538703184,-500.0,0.00022739,3]
[329645350,1718538703196,-755.82,0.00022739,3]
[329645351,1718538703216,-1618.36,0.00022739,3]
[329645352,1718538703237,-507.92585887,0.00022739,3]
[329645353,1718538703267,-500.0,0.00022739,3]
[329645354,1718538703312,-500.0,0.00022739,3]
[329645355,1718538703345,-1768.97,0.00022739,3]
[329645356,1718538703375,-1055.75,0.00022739,3]
[329645357,1718538703393,-3359.28,0.00022739,3]
[329645358,1718538703405,-1535.59,0.00022739,3]
[329645359,1718538703419,-2155.72,0.00022739,3]
[329645360,1718538703438,-312.05084036,0.00022739,3]
[329645361,1718538703457,-4282.88,0.00022739,3]
[329645362,1718538703486,-512.52,0.00022739,3]
[329645363,1718538703502,-500.0,0.00022739,3]
[329645364,1718538703525,-527.63,0.00022739,3]
[329645365,1718538703537,-594.31573883,0.00022739,3]
[329645366,1718538703550,-2030.88,0.00022739,3]
[329645367,1718538703565,-1367.9,0.00022739,3]
[329645368,1718538703581,-617.75,0.00022739,3]
[329645369,1718538703593,-500.0,0.00022739,3]
[329645370,1718538703619,-525.99,0.00022739,3]
[329645371,1718538703637,-500.0,0.00022739,3]
[329645372,1718538703659,-500.0,0.00022739,3]
[329645373,1718538703679,-596.9,0.00022739,3]
[329645374,1718538703704,-1369.58,0.00022739,3]
[329645375,1718538703719,-2396.45,0.00022739,3]
[329645376,1718538703749,-1410.09,0.00022739,3]
[329645377,1718538703774,-500.0,0.00022739,3]
[329645378,1718538703794,-500.0,0.00022739,3]
[329645379,1718538703818,-2697.85,0.00022739,3]
[329645380,1718538703830,-1084.91,0.00022739,3]
[329645381,1718538703873,-500.0,0.00022739,3]
[329645382,1718538703894,-1718.15,0.00022739,3]
[329645383,1718538703905,-500.0,0.00022739,3]
[329645384,1718538703924,-500.0,0.00022739,3]
[329645385,1718538703941,-500.0,0.00022739,3]
[329645386,1718538703970,-1280.9,0.00022739,3]
[329645387,1718538703998,-500.0,0.00022739,3]
[329645388,1718538704028,-1550.83,0.00022739,3]
[329645389,1718538704069,-1300.26,0.00022739,3]
[329645390,1718538704107,-1551.39,0.00022739,3]
[329645391,1718538704121,-930.99,0.00022739,3]
[329645392,1718538704155,-500.0,0.00022739,3]
[329645393,1718538704200,-500.0,0.00022739,3]
[329645394,1718538704227,-500.0,0.00022739,3]
[329645395,1718538704242,-500.0,0.00022739,3]
[329645396,1718538704265,-500.0,0.00022739,3]
[329645397,1718538704283,-2227.01,0.00022739,3]
[329645398,1718538704301,-500.0,0.00022739,3]
[329645399,1718538704342,-500.0,0.00022739,3]
[329645400,1718538704356,-517.9,0.00022739,3]
[329645401,1718538704370,-500.0,0.00022739,3]
[329645402,1718538704422,-500.0,0.00022739,3]
[329645403,1718538704454,-500.0,0.00022739,3]
[329645404,1718538704465,-762.39,0.00022739,3]
[329645405,1718538704486,-500.0,0.00022739,3]
[329645406,1718538704501,-500.0,0.00022739,3]
[329645407,1718538704534,-1044.11,0.00022739,3]
[329645408,1718538704556,-500.0,0.00022739,3]
[329645409,1718538704584,-500.0,0.00022739,3]
[329645410,1718538704608,-500.0,0.00022739,3]
[329645411,1718538704643,-500.0,0.00022739,3]
[329645412,1718538704660,-721.44,0.00022739,3]
[329645413,1718538704678,-500.0,0.00022739,3]
[329645414,1718538704699,-500.0,0.00022739,3]
[329645415,1718538704732,-981.85,0.00022739,3]
[329645416,1718538704753,-500.0,0.00022739,3]
[329645417,1718538704765,-1486.62,0.00022739,3]
[329645418,1718538704777,-820.97,0.00022739,3]
[329645419,1718538704789,-1000.0,0.00022863,2]
[329645420,1718538704807,-150.0,0.000229,3]
[329645421,1718538704845,-150.0,0.000229,3]
[329645422,1718538704868,-3400.0,0.0002295,2]
[329645423,1718538704882,-2900.0,0.0002295,2]
[329645424,1718538704894,-150.5,0.0002297,15]
[329645425,1718538704923,-822.0,0.0002297,15]
[329645426,1718538704939,-150.5,0.0002298,15]
[329645427,1718538704953,-822.0,0.0002298,15]
[329645428,1718538704967,-150.5,0.0002299,15]
[329645429,1718538704981,-822.0,0.0002299,15]
[329645430,1718538704993,-800.0,0.00023,2]
[329645431,1718538705013,-335.32320906,0.00023,2]
[329645432,1718538705024,-200.0,0.00023,2]
[329645433,1718538705037,-1300.0,0.00023,2]
[329645434,1718538705070,-500.0,0.00023013,3]
[329645435,1718538705084,-500.0,0.00023013,3]
[329645436,1718538705099,-500.0,0.00023013,3]
[329645437,1718538705133,-500.0,0.00023013,3]
[329645438,1718538705344,-500.0,0.00023013,3]
[329645439,1718538705370,-401.58519777,0.00023013,3]
[329645440,1718538705396,-500.0,0.00023013,3]
[329645441,1718538705407,-500.0,0.00023013,3]
[329645442,1718538705420,-500.0,0.00023013,3]
[329645443,1718538705435,-500.0,0.00023013,3]
[329645444,1718538705447,-500.0,0.00023013,3]
[329645445,1718538705465,-428.88,0.00023013,3]
[329645446,1718538705480,-500.0,0.00023013,3]
[329645447,1718538705514,-500.0,0.00023013,3]
[329645448,1718538705526,-500.0,0.00023013,3]
[329645449,1718538705539,-467.23981172,0.00023013,3]
[329645450,1718538705554,-500.0,0.00023013,3]
[329645451,1718538705585,-500.0,0.00023013,3]
[329645452,1718538705602,-204.02567387,0.00023013,3]
[329645453,1718538705653,-500.0,0.00023013,3]
[329645454,1718538705671,-500.0,0.00023013,3]
[329645455,1718538705702,-500.0,0.00023013,3]
[329645456,1718538705726,-500.0,0.00023013,3]
[329645457,1718538705748,-160.87793053,0.00023013,3]
[329645458,1718538705792,-500.0,0.00023013,3]
[329645459,1718538705808,-667.84,0.00023013,3]
[329645460,1718538705819,-278.82646821,0.00023013,3]
[329645461,1718538705848,-500.0,0.00023013,3]
[329645462,1718538705859,-500.0,0.00023013,3]
[329645463,1718538705890,-500.0,0.00023013,3]
[329645464,1718538705933,-500.0,0.00023013,3]
[329645465,1718538705966,-500.0,0.00023013,3]
[329645466,1718538705985,-500.0,0.00023013,3]
[329645467,1718538706054,-500.0,0.00023013,3]
[329645468,1718538706070,-500.0,0.00023013,3]
[329645469,1718538706085,-500.0,0.00023013,3]
[329645470,1718538706102,-500.0,0.00023013,3]
[329645471,1718538706121,-625.0,0.00023013,3]
[329645472,1718538706162,-500.0,0.00023013,3]
[329645473,1718538706192,-6613.19,0.00023013,3]
[329645474,1718538706207,-500.0,0.00023013,3]
[329645475,1718538706226,-626.88,0.00023013,3]
[329645476,1718538706268,-500.0,0.00023013,3]
[329645477,1718538706287,-500.0,0.00023013,3]
[329645478,1718538706303,-1006.45,0.00023013,3]
[329645479,1718538706330,-625.67,0.00023013,3]
[329645480,1718538706358,-500.0,0.00023013,3]
[329645481,1718538706398,-500.0,0.00023013,3]
[329645482,1718538706419,-500.0,0.00023013,3]
[329645483,1718538706431,-500.0,0.00023013,3]
[329645484,1718538706445,-643.81,0.00023013,3]
[329645485,1718538706456,-500.0,0.00023013,3]
[329645486,1718538706468,-1016.21,0.00023013,3]
[329645487,1718538706480,-500.0,0.00023013,3]
[329645488,1718538706491,-500.0,0.00023013,3]
[329645489,1718538706502,-500.0,0.00023013,3]
[329645490,1718538706513,-849.46,0.00023013,3]
[329645491,1718538706523,-588.93,0.00023013,3]
[329645492,1718538706543,-686.57,0.00023013,3]
[329645493,1718538706571,-500.0,0.00023013,3]
[329645494,1718538706583,-500.0,0.00023013,3]
[329645495,1718538706595,-500.0,0.00023013,3]
[329645496,1718538706606,-568.35,0.00023013,3]
[329645497,1718538706617,-503.85,0.00023013,3]
[329645498,1718538706630,-500.0,0.00023013,3]
[329645499,1718538706643,-902.54,0.00023013,3]
[329645500,1718538706655,-500.0,0.00023013,3]
[329645501,1718538706675,-500.0,0.00023013,3]
[329645502,1718538706700,-500.0,0.00023013,3]
[329645503,1718538706715,-500.0,0.00023013,3]
[329645504,1718538706726,-500.0,0.00023013,3]
[329645505,1718538706741,-500.0,0.00023013,3]
[329645506,1718538706769,-500.0,0.00023013,3]
[329645507,1718538706801,-500.0,0.00023013,3]
[329645508,1718538706818,-500.0,0.00023013,3]
[329645509,1718538706834,-500.0,0.00023013,3]
[329645510,1718538706858,-833.07,0.00023013,3]
[329645511,1718538706894,-500.0,0.00023013,3]
[329645512,1718538706913,-500.0,0.00023013,3]
[329645513,1718538706929,-500.0,0.00023013,3]
[329645514,1718538706941,-511.59,0.00023013,3]
[329645515,1718538706962,-1114.37,0.00023013,3]
[329645516,1718538706973,-500.0,0.00023013,3]
[329645517,1718538706988,-500.0,0.00023013,3]
[329645518,1718538707002,-867.65,0.00023013,3]
[329645519,1718538707016,-500.0,0.00023013,3]
[329645520,1718538707029,-564.01,0.00023013,3]
[329645521,1718538707040,-500.0,0.00023013,3]
[329645522,1718538707054,-507.91,0.00023013,3]
[329645523,1718538707068,-500.0,0.00023013,3]
[329645524,1718538707085,-500.0,0.00023013,3]
[329645525,1718538707107,-500.0,0.00023013,3]
[329645526,1718538707118,-531.33,0.00023013,3]
[329645527,1718538707131,-500.0,0.00023013,3]
[329645528,1718538707147,-500.0,0.00023013,3]
[329645529,1718538707158,-500.0,0.00023013,3]
[329645530,1718538707171,-500.0,0.00023013,3]
[329645531,1718538707183,-500.0,0.00023013,3]
[329645532,1718538707194,-618.4,0.00023013,3]
[329645533,1718538707206,-601.38323384,0.00023013,3]
[329645534,1718538707229,-561.59,0.00023013,3]
[329645535,1718538707271,-551.81,0.00023013,3]
[329645536,1718538707309,-500.0,0.00023013,3]
[329645537,1718538707328,-500.0,0.00023013,3]
[329645538,1718538707347,-527.68,0.00023013,3]
[329645539,1718538707362,-500.0,0.00023013,3]
[329645540,1718538707375,-540.61,0.00023013,3]
[329645541,1718538707424,-827.67,0.00023013,3]
[329645542,1718538707439,-500.0,0.00023013,3]
[329645543,1718538707460,-187.76695112,0.00023013,3]
[329645544,1718538707476,-500.0,0.00023013,3]
[329645545,1718538707488,-500.0,0.00023013,3]
[329645546,1718538707520,-500.0,0.00023013,3]
[329645547,1718538707543,-574.30343383,0.00023013,3]
[329645548,1718538707565,-500.0,0.00023013,3]
[329645549,1718538707579,-203.22,0.00023013,3]
[329645550,1718538707591,-500.0,0.00023013,3]
[329645551,1718538707603,-1352.2,0.00023013,3]
[329645552,1718538707619,-500.0,0.00023013,3]
[329645553,1718538707632,-500.0,0.00023013,3]
[329645554,1718538707654,-337.38341831,0.00023013,3]
[329645555,1718538707672,-500.0,0.00023013,3]
[329645556,1718538707684,-500.0,0.00023013,3]
[329645557,1718538707709,-500.0,0.00023013,3]
[329645558,1718538707740,-500.0,0.00023013,3]
[329645559,1718538707752,-500.0,0.00023013,3]
[329645560,1718538707765,-503.17,0.00023013,3]
[329645561,1718538707786,-500.0,0.00023013,3]
[329645562,1718538707817,-962.95,0.00023013,3]
[329645563,1718538707862,-575.67,0.00023013,3]
[329645564,1718538707890,-500.0,0.00023013,3]